bitfinex/quotes_ETHUSD_20241122
["timestamp","ask_amount","ask_price","bid_price","bid_amount"]
[1732283128419,2.744,3268.5,3266.7,0.01]
[1732283128618,0.52937639,3269.6,3266.9,0.01]
[1732283128821,0.52937639,3269.6,3267.4,1.5819]
[1732283129139,2.744,3270.6,3267.9,0.01]
[1732283129301,2.744,3270.6,3267.8,0.00999452]
[1732283129302,2.744,3270.6,3268.1,0.55]
[1732283129503,3.05799,3270.2,3268.1,0.55]
[1732283129903,3.05812,3270.0,3268.1,0.55]
[1732283130228,0.580146,3270.5,3268.1,0.55]
[1732283130432,3.05782,3270.3,3268.1,0.55]
[1732283130583,0.3324146,3270.4,3268.1,0.56]
[1732283130787,3.05808,3270.1,3268.1,0.55]
[1732283130988,0.305808,3270.0,3268.1,0.55]
[1732283131234,0.3324146,3270.4,3268.0,1.5877]
[1732283131832,0.3324146,3270.4,3268.4,0.01]
[1732283132032,0.05136829,3270.3,3268.0,1.59769452]
[1732283132385,0.05136829,3270.3,3268.0,1.5877]
[1732283132386,0.43566477,3270.3,3268.0,1.5877]
[1732283132591,3.05847,3269.7,3268.0,1.5877]
[1732283132905,3.05864,3269.5,3268.0,1.5877]
[1732283133234,3.05911,3269.0,3266.9,1.6356]
[1732283133398,3.05914,3268.9,3266.9,1.6356]
[1732283133602,0.305914,3268.8,3266.9,1.6356]
[1732283133835,0.38429648,3269.4,3266.9,1.6356]
[1732283133836,3.0,3268.7,3266.9,1.6356]
[1732283134018,0.05143513,3268.7,3265.9,0.01]
[1732283134328,0.34357321,3268.6,3266.6,0.00999452]
[1732283134488,0.34357321,3268.6,3266.7,1.5148]
[1732283134829,0.05095897,3268.5,3266.7,1.5148]
[1732283135636,0.05095897,3268.5,3266.9,0.01]
[1732283135786,3.0,3269.1,3266.9,0.01]
[1732283135994,0.04912954,3268.4,3267.1,2.2048]
[1732283136238,0.29613,3269.1,3267.1,2.2048]
[1732283136599,0.04912954,3269.0,3267.2,0.01]
[1732283136840,0.04912954,3269.0,3267.8,1.5234]
[1732283137146,3.05756,3270.6,3268.0,0.01]
[1732283137324,7.43940356,3271.6,3267.9,3.55999452]
[1732283137325,0.04752628,3270.3,3268.6,0.55]
[1732283137534,1.222002,3270.3,3268.8,0.55]
[1732283137849,0.04765475,3270.2,3268.8,0.55]
[1732283138137,0.04765475,3270.2,3268.6,0.55]
[1732283138138,0.31055048,3270.1,3268.6,0.55]
[1732283138550,3.0581,3270.0,3268.6,0.55]
[1732283138845,3.05826,3269.9,3268.6,0.55]
[1732283139011,3.05826,3269.9,3268.1,0.55]
[1732283139343,3.05847,3269.7,3268.1,0.55]
[1732283139631,0.04769161,3269.6,3268.1,0.55]
[1732283140468,0.04769161,3269.6,3268.1,0.55999452]
[1732283140770,3.05769,3270.5,3268.1,0.55999452]
[1732283140771,3.05769,3270.5,3268.1,0.77777397]
[1732283140945,3.05719,3271.0,3268.4,1.5731]
[1732283141140,2.7027,3271.5,3266.8,3.02]
[1732283141141,0.0460991,3270.9,3269.0,0.01]
[1732283141344,0.0460991,3270.9,3269.2,0.55]
[1732283141345,1.221758,3270.9,3269.2,0.55]
[1732283141557,0.04627003,3270.8,3269.2,0.55]
[1732283142040,3.10364003,3270.8,3269.2,0.55]
[1732283142239,0.27027,3271.4,3269.2,0.55]
[1732283142439,0.04627003,3270.7,3269.2,0.55]
[1732283142653,3.05739,3270.8,3269.2,0.55]
[1732283142966,0.332721,3271.2,3269.2,0.55]
[1732283143172,3.10378003,3270.7,3269.2,0.55]
[1732283143346,3.05751,3270.7,3269.2,0.55]
[1732283143545,0.35202103,3270.6,3269.2,0.55]
[1732283143743,0.04627003,3270.6,3269.2,0.55]
[1732283144064,0.332721,3271.2,3269.2,0.56999452]
[1732283144376,0.27027,3271.4,3269.6,0.01]
[1732283144677,0.0464141,3271.1,3269.6,0.56]
[1732283144831,3.05595,3272.3,3269.6,0.56]
[1732283145031,3.05645,3271.8,3269.6,0.55]
[1732283145226,0.04650283,3272.2,3269.6,0.55]
[1732283145467,3.05669,3271.6,3269.6,0.55]
[1732283145682,0.305669,3271.5,3269.6,0.55]
[1732283145853,0.305669,3271.5,3269.8,0.55]
[1732283146169,3.05684,3271.4,3269.8,0.55]
[1732283146373,3.05709,3271.1,3268.9,0.01]
[1732283146580,6.37360314,3272.1,3268.8,1.6474]
[1732283146581,0.04652293,3271.3,3268.8,1.6474]
[1732283146761,3.05747,3270.7,3268.8,1.6474]
[1732283146942,3.40989993,3270.6,3268.8,1.6474]
[1732283147147,3.40982993,3270.6,3268.8,1.6474]
[1732283147358,3.05768,3270.5,3268.8,1.6474]
[1732283147569,0.04657983,3270.4,3268.8,1.6474]
[1732283147856,3.05782,3270.3,3268.8,1.6474]
[1732283148056,3.05798,3270.2,3268.8,1.6474]
[1732283148235,3.05782,3270.3,3268.8,1.6474]
[1732283148440,0.04657983,3270.1,3268.8,1.6474]
[1732283148646,3.05782,3270.3,3268.8,1.6474]
[1732283148882,0.04657983,3270.0,3268.8,1.6474]
[1732283149088,3.05766,3270.5,3268.8,1.6474]
[1732283149089,0.04643923,3270.2,3268.8,1.6474]
[1732283149383,3.05829,3269.8,3268.8,1.6474]
[1732283149579,0.04643923,3270.1,3268.8,1.6474]
[1732283149580,3.05812,3270.0,3268.8,1.6474]
[1732283149753,0.31045592,3269.9,3268.8,1.6474]
[1732283150071,3.05803,3270.1,3268.8,1.6474]
[1732283150072,0.04643923,3269.8,3268.8,1.6474]
[1732283150437,3.05786,3270.3,3268.9,0.55]
[1732283150694,0.04636553,3269.7,3268.8,1.6474]
[1732283150853,3.05799,3270.2,3268.8,1.6474]
[1732283151058,0.04636553,3269.6,3268.8,1.6474]
[1732283151241,0.305799,3270.1,3268.9,0.55]
[1732283151445,0.04636553,3269.5,3268.8,1.6474]
[1732283151687,1.20192822,3270.1,3268.8,1.6474]
[1732283151853,0.04636553,3269.4,3268.9,0.55]
[1732283152185,1.50771922,3270.1,3268.9,0.55]
[1732283152389,1.20192822,3270.0,3268.9,0.55]
[1732283152585,0.33106116,3269.9,3268.9,0.55]
[1732283152749,0.04636553,3270.0,3268.9,0.55]
[1732283153370,1.20192822,3270.2,3268.9,0.55]
[1732283153570,0.04636553,3270.1,3269.0,1.5496]
[1732283153773,0.04636553,3270.1,3268.1,0.3058]
[1732283153774,0.04636553,3270.1,3269.2,1.5496]
[1732283154065,3.05864,3269.5,3267.2,0.00999452]
[1732283154370,3.05897,3269.1,3267.1,0.01]
[1732283154756,4.26121822,3268.8,3266.5,0.01]
[1732283154922,1.20192822,3268.3,3266.5,0.01]
[1732283155201,1.20192822,3268.1,3266.6,0.00999452]
[1732283155411,0.30511308,3268.0,3266.6,0.00999452]
[1732283155702,0.30511308,3268.0,3266.9,0.01999452]
[1732283155918,0.04631026,3267.9,3267.3,0.01]
[1732283156264,1.20192822,3268.7,3267.3,0.01]
[1732283156564,1.20192822,3268.6,3267.3,0.01]
[1732283156760,0.04615273,3268.5,3267.4,0.00999452]
[1732283156975,0.04615273,3268.5,3267.5,1.6309]
[1732283157261,1.20192822,3268.4,3267.5,1.6309]
[1732283157502,0.04615273,3268.4,3267.5,1.6309]
[1732283157674,0.04615273,3268.4,3267.6,0.55]
[1732283158012,0.04615273,3268.4,3267.5,1.6309]
[1732283158013,0.04615273,3268.3,3267.5,1.6309]
[1732283158299,0.04615273,3268.3,3267.6,0.55]
[1732283158832,1.20192822,3268.2,3267.5,1.6309]
[1732283159134,1.20192822,3268.0,3267.5,1.6309]
[1732283159694,0.04464508,3267.9,3267.5,1.6309]
[1732283160104,1.20192822,3268.4,3267.6,0.55]
[1732283160305,5.08e-06,3267.8,3267.6,0.55]
[1732283160620,0.04315708,3267.7,3267.5,1.6309]
[1732283160822,1.20192822,3268.4,3267.5,1.6309]
[1732283161034,0.04315708,3267.6,3267.5,1.6309]
[1732283161225,1.20192822,3268.1,3267.5,1.6309]
[1732283161538,0.04305653,3267.6,3267.5,1.6309]
[1732283161689,1.20192822,3268.1,3267.5,1.6309]
[1732283161890,0.04303643,3267.6,3267.5,1.6309]
[1732283162105,1.20192822,3268.4,3267.6,0.55]
[1732283162636,1.20192822,3268.6,3267.6,0.55]
[1732283162793,1.50241028,3268.6,3267.6,0.55999452]
[1732283162990,1.20192822,3268.7,3268.1,0.01]
[1732283163189,1.20192822,3268.7,3268.0,0.55999452]
[1732283163190,1.20192822,3269.1,3268.4,1.5587]
[1732283163388,3.0576,3270.6,3268.5,0.56]
[1732283163613,3.05738,3270.8,3268.5,0.56999452]
[1732283163952,1.5075,3271.2,3268.9,0.56]
[1732283164527,4.57946,3270.9,3268.8,1.5587]
[1732283164743,2.9583,3270.2,3267.4,0.00999452]
[1732283164898,3.05847,3269.6,3267.1,0.00999452]
[1732283165096,1.5222,3270.0,3267.1,0.00999452]
[1732283165097,1.5222,3270.0,3267.2,0.01]
[1732283165322,3.05915,3268.9,3267.1,0.00999452]
[1732283165519,0.305915,3268.8,3267.0,0.01]
[1732283165722,0.305915,3268.8,3267.3,0.01]
[1732283165906,1.5222,3270.0,3265.9,0.03060417]
[1732283165907,3.0,3269.5,3267.5,0.01999452]
[1732283166134,0.605851,3269.4,3267.5,0.01999452]
[1732283166363,3.05842,3269.7,3267.5,0.00999452]
[1732283166564,1.6317,3269.0,3266.8,0.01]
[1732283166875,1.2163596,3268.1,3267.1,0.00999452]
[1732283167163,1.2163596,3267.7,3267.1,0.00999452]
[1732283167373,1.2163596,3267.8,3267.1,0.00999452]
[1732283167526,1.0663596,3267.9,3267.2,0.01]
[1732283167725,1.8245394,3268.0,3267.2,1.584]
[1732283167970,1.8245394,3268.0,3267.2,1.574]
[1732283168321,2.25026526,3268.0,3267.2,1.574]
[1732283168525,1.8245394,3268.0,3267.3,0.01]
[1732283168754,1.8245394,3268.2,3267.3,0.56]
[1732283168960,2.25026526,3268.2,3267.3,0.56]
[1732283169270,1.8245394,3268.3,3267.5,0.01999452]
[1732283169432,1.8245394,3268.5,3267.7,0.56999452]
[1732283169622,0.04027915,3268.2,3268.1,0.55999452]
[1732283169831,3.04112898,3268.9,3268.1,0.55999452]
[1732283169832,1.8245394,3268.7,3268.1,0.55999452]
[1732283170028,0.03893582,3268.2,3268.1,0.55999452]
[1732283170450,1.8245394,3269.3,3268.9,0.55]
[1732283170659,1.8245394,3269.4,3268.8,1.2860851]
[1732283170969,3.04112898,3269.7,3268.6,0.00999452]
[1732283170970,0.03763796,3269.2,3269.1,0.01999452]
[1732283171167,0.03774716,3269.3,3269.1,0.01999452]
[1732283171474,1.8245394,3270.5,3269.8,0.00999452]
[1732283171636,1.8245394,3270.5,3268.4,0.01]
[1732283171637,1.8245394,3270.7,3270.0,0.00999452]
[1732283171971,1.8245394,3270.8,3270.0,0.00999452]
[1732283172172,1.8245394,3270.9,3270.0,0.00999452]
[1732283172489,1.8245394,3270.9,3270.5,0.01999452]
[1732283172646,1.8245394,3271.4,3270.7,0.01]
[1732283172826,1.8245394,3271.6,3271.0,0.01]
[1732283173029,3.04535928,3271.9,3271.0,0.01]
[1732283173030,1.8245394,3271.8,3271.0,0.01]
[1732283173325,1.8245394,3272.0,3271.0,0.01]
[1732283173585,1.8245394,3272.0,3271.1,1.6141]
[1732283173882,0.18245394,3271.9,3271.1,1.6141]
[1732283174252,1.8245394,3272.2,3271.1,1.6141]
[1732283174448,1.8245394,3272.3,3271.1,1.6141]
[1732283174887,1.8245394,3272.4,3271.2,0.56]
[1732283175047,1.8245394,3272.0,3271.1,1.6141]
[1732283175448,1.8245394,3272.1,3271.1,1.6141]
[1732283175647,1.8245394,3272.0,3271.1,1.6141]
[1732283175883,0.18245394,3271.9,3271.1,1.6141]
[1732283176470,1.8245394,3272.1,3271.1,1.6141]
[1732283176781,1.8245394,3272.2,3271.1,1.6141]
[1732283176954,1.8245394,3272.1,3271.1,1.6141]
[1732283177152,4.8808994,3271.9,3270.3,1.5111]
[1732283177451,1.21534169,3271.6,3270.5,0.00999452]
[1732283177756,0.30398811,3271.5,3270.6,0.01]
[1732283177957,1.39779563,3272.0,3271.0,0.01]
[1732283178175,0.03711872,3271.4,3271.0,0.01]
[1732283178386,1.64106755,3272.3,3271.2,0.01]
[1732283178589,0.16410675,3272.2,3271.2,0.01]
[1732283178796,0.03711872,3272.1,3271.7,1.653]
[1732283179093,1.21534169,3272.6,3271.7,1.653]
[1732283179300,0.03711872,3272.0,3271.7,1.663]
[1732283179509,0.18245394,3272.7,3271.7,1.663]
[1732283179795,0.03747102,3271.9,3271.7,1.663]
[1732283179949,1.21534169,3273.0,3271.7,1.663]
[1732283180149,3.3271394,3273.2,3271.7,1.663]
[1732283180150,1.21534169,3273.2,3271.9,0.01]
[1732283180349,1.8245394,3273.4,3271.8,0.55]
[1732283180350,0.03763032,3272.9,3272.1,0.01]
[1732283180554,0.037632,3273.1,3272.1,0.01]
[1732283180770,1.21534169,3273.6,3272.1,0.01]
[1732283180976,3.3271394,3273.7,3272.1,0.01]
[1732283180977,0.037632,3273.0,3272.1,0.01]
[1732283181204,3.05456,3273.8,3272.2,1.5712]
[1732283181398,0.037632,3272.9,3272.2,1.5712]
[1732283181713,0.48789994,3273.8,3272.6,0.01999452]
[1732283181714,1.70324163,3273.8,3272.6,0.01999452]
[1732283181859,1.21534169,3274.4,3273.3,0.00999452]
[1732283182062,0.037632,3273.7,3273.3,0.00999452]
[1732283182272,1.75,3274.8,3273.6,1.5712]
[1732283182509,0.41827192,3274.7,3273.9,0.01]
[1732283182672,1.75,3274.8,3274.1,0.01]
[1732283182874,1.75,3274.8,3273.7,0.55999452]
[1732283182875,1.75,3274.8,3274.3,0.01]
[1732283183200,1.75,3274.8,3273.7,0.55]
[1732283183201,1.75,3274.8,3274.5,0.01]
[1732283183500,1.75,3274.8,3274.7,0.01]
[1732283183809,0.22319,3274.8,3274.7,0.01]
[1732283184012,4.7e-06,3275.1,3275.0,2.1275]
[1732283184311,4.7e-06,3275.1,3275.0,2.13749452]
[1732283187008,1.5533,3277.0,3275.0,2.13749452]
[1732283187009,0.00125,3277.2,3275.7,0.01]
[1732283187366,0.00125,3277.2,3275.6,0.55]
[1732283187367,0.00125,3277.2,3275.9,0.56]
[1732283187665,0.00125,3277.2,3276.3,0.01]
[1732283188166,0.00125,3277.2,3276.6,0.00999452]
[1732283188390,0.00125,3277.2,3276.5,0.56]
[1732283188604,0.00125,3277.2,3276.6,0.00999452]
[1732283188803,0.00125,3277.2,3277.0,0.01]
[1732283189112,0.00125,3277.2,3277.1,2.13159452]
[1732283189320,1e-05,3277.2,3277.1,2.13159452]
[1732283189504,0.1480547,3278.4,3278.0,0.01]
[1732283189706,0.1480547,3278.4,3278.0,0.01999452]
[1732283189999,0.1480547,3278.4,3278.3,0.01]
[1732283190516,0.1480547,3278.4,3277.8,1.5716]
[1732283190737,0.1480547,3278.4,3278.0,0.01]
[1732283191015,0.1480547,3278.4,3278.2,0.01]
[1732283191016,0.03480113,3278.3,3278.2,0.01]
[1732283191220,0.1480547,3278.4,3277.9,0.55]
[1732283191515,0.1480547,3278.4,3274.5,0.0305077]
[1732283191516,0.1480547,3278.4,3277.3,1.6375]
[1732283191676,0.1480547,3278.4,3276.8,1.6375]
[1732283191677,3.05083,3277.8,3276.8,1.6375]
[1732283191879,3.05064,3278.0,3276.8,1.6375]
[1732283192181,0.305064,3277.9,3276.8,1.6375]
[1732283192429,3.05083,3277.8,3276.8,1.5582]
[1732283192580,3.05083,3277.8,3275.8,0.01999452]
[1732283192581,3.05138,3277.3,3275.8,0.01999452]
[1732283192940,0.305083,3277.7,3275.6,0.01]
[1732283193229,1.6375,3276.6,3275.2,0.01]
[1732283193520,1.6375,3276.6,3273.4,0.01]
[1732283193521,0.03502166,3276.5,3274.6,0.00999452]
[1732283193697,3.05278,3275.7,3274.6,0.00999452]
[1732283194025,3.05259,3275.9,3274.3,0.00999452]
[1732283194221,3.05306,3275.4,3274.2,0.01]
[1732283194383,0.03469246,3275.8,3274.4,0.01]
[1732283194582,0.36473772,3276.3,3274.7,0.01999452]
[1732283194826,0.03469246,3275.7,3274.5,0.00999452]
[1732283195036,1.6375,3276.6,3274.2,0.01]
[1732283195037,3.0,3275.9,3274.2,0.01]
[1732283195228,0.03528518,3275.6,3274.5,0.01999452]
[1732283195383,0.03528518,3275.6,3274.7,0.01999452]
[1732283195580,0.03528518,3275.6,3275.2,0.01]
[1732283195805,1.6375,3276.6,3275.1,0.01]
[1732283196090,0.19903184,3276.5,3275.8,0.01]
[1732283196294,0.03528184,3276.5,3275.6,1.6261]
[1732283196496,3.05145,3277.2,3275.8,0.01]
[1732283196740,0.03526177,3276.4,3276.1,0.01]
[1732283196925,1.5943,3277.8,3276.6,1.6161]
[1732283197120,0.29780547,3278.3,3276.7,0.01]
[1732283197421,3.05071,3278.0,3276.7,0.01]
[1732283197624,1.85920547,3278.3,3276.9,0.01]
[1732283197953,0.20072602,3278.2,3277.7,0.01]
[1732283198112,4.6112,3279.0,3277.6,1.5129]
[1732283198429,3.04987,3278.9,3277.6,1.5129]
[1732283198609,1.5614,3279.0,3277.7,0.01]
[1732283198813,1.5614,3279.0,3277.7,0.56999452]
[1732283199041,4.59663,3279.5,3278.1,0.01]
[1732283199244,3.04937,3279.4,3278.1,0.01]
[1732283199401,1.5473,3279.5,3278.3,0.01]
[1732283199596,4.59655,3279.5,3278.3,0.01]
[1732283199813,1.5473,3279.5,3278.3,0.01]
[1732283200815,3.05,3278.7,3277.6,1.5129]
[1732283201014,3.04956,3279.2,3277.6,1.5129]
[1732283201217,3.04956,3279.2,3277.7,0.01]
[1732283201449,3.04956,3279.2,3278.1,0.01]
[1732283201739,4.5473,3279.5,3278.1,0.01]
[1732283201941,4.5473,3279.5,3278.3,0.01]
[1732283201942,4.59654,3279.5,3278.3,0.01]
[1732283202235,1.5473,3279.5,3278.3,0.01]
[1732283202442,0.011,3279.8,3278.3,1.6456]
[1732283202643,0.011,3279.8,3278.3,2.1956]
[1732283202844,0.011,3279.8,3278.3,1.6456]
[1732283203229,3.0,3279.5,3278.3,1.6456]
[1732283203605,3.04944,3279.3,3278.3,1.6356]
[1732283203806,3.0,3279.7,3278.1,0.00999452]
[1732283204022,3.04963,3279.1,3278.1,0.01999452]
[1732283204208,3.0499,3278.8,3277.8,1.5414]
[1732283204404,0.03342477,3278.3,3277.6,0.01]
[1732283205709,0.03342477,3278.3,3277.4,1.62529452]
[1732283205710,0.03342477,3278.3,3278.0,0.01999452]
[1732283205914,0.03342477,3278.3,3278.2,0.01]
[1732283206455,0.03342477,3278.3,3278.0,0.00999452]
[1732283206614,3.04954,3279.2,3278.0,0.00999452]
[1732283206953,1.6333,3279.6,3278.2,0.01]
[1732283206954,3.04926,3279.5,3278.2,0.01]
[1732283207136,3.0,3279.5,3278.2,0.01]
[1732283207312,0.03333943,3278.3,3277.8,0.01]
[1732283207516,1.6333,3279.6,3278.0,0.01999452]
[1732283207741,1.6333,3279.6,3278.3,1.65059452]
[1732283208059,4.7e-06,3278.4,3278.3,1.65059452]
[1732283208211,4.7e-06,3278.4,3278.3,2.20059452]
[1732283208412,4.7e-06,3278.4,3278.3,1.65059452]
[1732283209326,4.7e-06,3278.4,3278.3,1.22201075]
[1732283210247,4.7e-06,3278.4,3278.3,1.23201075]
[1732283210560,4.7e-06,3278.4,3278.3,1.78201075]
[1732283211111,0.011,3279.8,3279.4,0.01]
[1732283211314,0.011,3279.8,3279.6,0.01]
[1732283211560,0.03177528,3279.7,3279.6,0.01]
[1732283211759,0.011,3279.8,3279.6,0.01]
[1732283212341,1.5709,3281.1,3280.1,0.01]
[1732283212541,3.20495,3281.0,3279.7,0.01]
[1732283212713,0.15709,3281.0,3279.9,0.01]
[1732283212909,0.02974001,3280.9,3280.1,0.01]
[1732283213110,0.02974001,3280.9,3279.6,3.0]
[1732283213310,3.25348301,3280.9,3279.5,0.01]
[1732283213543,0.20551301,3280.9,3279.5,0.01]
[1732283213723,0.20551301,3280.9,3279.8,0.01]
[1732283213912,3.25345301,3280.9,3279.8,0.01]
[1732283214124,3.3890943,3280.8,3279.5,0.01]
[1732283214449,3.04838,3280.5,3279.5,0.01]
[1732283214653,3.04666,3282.3,3280.9,1.6632]
[1732283214903,1.5356,3281.9,3280.3,1.6732]
[1732283215038,4.58262,3281.9,3280.3,1.6732]
[1732283215230,0.31642017,3281.7,3280.8,0.01]
[1732283216480,0.1480547,3281.7,3280.8,0.01]
[1732283216770,0.1480547,3281.7,3280.5,0.01]
[1732283217374,9.39e-06,3282.8,3282.7,0.01]
[1732283217573,9.39e-06,3282.8,3282.5,1.5861]
[1732283217871,9.39e-06,3282.8,3282.0,3.01]
[1732283218176,9.39e-06,3282.8,3281.9,0.01]
[1732283218360,1.5044,3282.7,3281.9,0.01]
[1732283218558,9.39e-06,3282.8,3280.4,0.01]
[1732283218559,9.39e-06,3282.8,3282.1,0.01]
[1732283219095,9.39e-06,3282.8,3282.5,0.01]
[1732283219261,9.39e-06,3282.8,3282.7,0.01]
[1732283219456,9.39e-06,3282.8,3282.0,0.01]
[1732283219657,9.39e-06,3282.8,3282.3,0.01]
[1732283220274,9.39e-06,3282.8,3282.1,0.01]
[1732283220475,9.39e-06,3282.8,3281.6,0.01]
[1732283220675,1.53320939,3282.8,3281.8,0.01]
[1732283220876,0.15332094,3282.7,3281.8,0.01]
[1732283221209,0.15332094,3282.7,3281.4,1.6501]
[1732283221411,0.15332094,3282.7,3281.6,0.01]
[1732283221700,0.15332094,3282.7,3281.4,0.01]
[1732283221903,0.16865209,3282.6,3281.4,0.01]
[1732283222890,0.16865209,3282.6,3281.2,3.0]
[1732283222891,0.16865209,3282.6,3281.6,0.01]
[1732283223207,0.16865209,3282.6,3281.2,3.0]
[1732283223357,1.6291,3282.2,3280.7,0.01]
[1732283223566,1.6291,3282.2,3280.4,0.01]
[1732283223567,3.04732,3281.6,3280.4,0.01]
[1732283223803,1.6291,3281.8,3280.4,0.01]
[1732283224004,3.59729,3281.6,3279.9,1.5503]
[1732283224207,0.55,3281.3,3279.4,1.5503]
[1732283224409,3.04804,3280.8,3279.1,0.01]
[1732283224577,0.304804,3280.7,3279.6,0.01]
[1732283224779,1.6291,3281.0,3279.6,0.01]
[1732283225105,0.55,3280.9,3279.4,0.01]
[1732283225294,0.71291,3280.9,3279.4,0.01]
[1732283225474,0.16291,3280.9,3279.6,0.01]
[1732283225809,0.179201,3280.8,3279.6,0.01]
[1732283226277,0.179201,3280.8,3279.3,0.01]
[1732283226476,0.179201,3280.8,3278.9,0.55]
[1732283226696,0.3227141,3280.7,3279.7,0.01]
[1732283226866,0.179201,3280.8,3280.0,0.01]
[1732283227213,1.6071,3281.4,3280.2,0.01]
[1732283227582,1.6071,3281.4,3280.0,0.01]
[1732283227762,0.16071,3281.3,3280.4,0.01]
[1732283227971,1.5053,3282.2,3280.7,0.01]
[1732283228288,1.5053,3282.2,3280.0,0.01]
[1732283228464,1.5053,3281.4,3279.8,1.6242]
[1732283228666,1.5053,3281.4,3280.2,0.01]
[1732283229002,3.04777,3281.1,3279.8,0.01]
[1732283229203,0.304777,3281.0,3279.8,0.01]
[1732283229371,3.04794,3280.9,3279.4,0.01]
[1732283229571,3.0,3281.2,3279.7,0.01]
[1732283229572,3.04783,3281.1,3279.7,0.01]
[1732283229884,0.55,3281.3,3279.4,0.01]
[1732283230087,0.55,3281.1,3279.4,0.01]
[1732283230296,3.04798,3280.9,3279.4,0.01]
[1732283230517,0.55,3281.1,3279.4,0.01]
[1732283230667,3.048,3280.9,3279.4,0.01]
[1732283231001,0.609585,3280.8,3279.3,1.5656]
[1732283231164,0.55,3281.1,3279.4,0.01]
[1732283231368,0.55,3281.2,3279.6,0.01]
[1732283231601,0.359764,3281.1,3279.6,0.01]
[1732283231915,0.359764,3281.1,3279.3,1.5656]
[1732283231916,0.359764,3281.1,3279.9,0.01]
[1732283232200,1.5053,3281.4,3279.3,1.5656]
[1732283232201,1.5053,3281.4,3279.7,0.01]
[1732283232716,3.04813,3280.7,3279.3,1.5656]
[1732283233008,1.642,3280.5,3278.9,0.01]
[1732283233208,3.04852,3280.3,3278.8,0.01]
[1732283233415,1.642,3280.5,3279.1,0.01]
[1732283234213,1.642,3280.5,3279.2,0.01]
[1732283234487,1.642,3280.5,3278.8,0.01]
[1732283234687,0.55,3280.4,3278.8,0.01]
[1732283234992,0.524037,3280.3,3278.8,0.01]
[1732283235193,3.59848,3280.4,3278.8,0.01]
[1732283235493,3.04861,3280.2,3278.8,0.01]
[1732283235719,3.04861,3280.2,3278.7,1.5151]
[1732283235942,3.55,3280.2,3278.7,1.5151]
[1732283236225,0.55,3280.0,3278.3,1.545]
[1732283236435,3.04887,3279.9,3278.3,1.545]
[1732283236990,1.5585,3279.6,3278.3,1.545]
[1732283237235,0.15585,3279.5,3278.3,1.535]
[1732283237528,0.55,3279.4,3278.3,1.535]
[1732283237728,3.20516,3279.5,3278.3,1.535]
[1732283237729,0.15585,3279.5,3278.3,1.535]
[1732283237933,0.171435,3279.4,3278.3,1.535]
[1732283238513,0.171435,3279.4,3278.4,0.01]
[1732283238691,0.171435,3279.4,3278.3,1.535]
[1732283238895,0.55,3279.3,3277.8,0.01]
[1732283239215,0.3770815,3279.2,3277.8,0.01]
[1732283239413,0.3770815,3279.2,3278.2,1.6368]
[1732283239593,0.171435,3279.4,3278.2,1.6368]
[1732283239789,3.220825,3279.4,3278.2,1.6368]
[1732283240015,0.171435,3279.4,3278.2,1.6468]
[1732283240443,0.171435,3279.4,3278.2,1.6368]
[1732283240740,3.04945,3279.3,3278.2,1.6368]
[1732283240940,3.04963,3279.1,3277.7,1.5069]
[1732283241309,0.3220885,3279.2,3278.1,0.01]
[1732283241555,0.171435,3279.4,3278.3,0.01]
[1732283241734,0.171435,3279.4,3277.7,1.5069]
[1732283241909,0.171435,3279.4,3278.2,0.01]
[1732283242106,0.171435,3279.4,3278.3,1.5069]
[1732283242707,0.171435,3279.4,3278.4,0.01]
[1732283243858,0.171435,3279.4,3278.6,0.01]
[1732283244064,1.19254774,3280.0,3278.4,0.01]
[1732283244220,4.24149774,3279.9,3278.4,0.01]
[1732283244609,4.24156774,3279.8,3278.3,1.5069]
[1732283244827,3.89742655,3279.7,3278.3,1.5069]
[1732283245029,1.19254774,3279.6,3278.3,1.5069]
[1732283245259,0.55,3279.6,3278.3,1.5069]
[1732283245848,3.59915,3279.6,3278.3,1.5069]
[1732283246049,2.33882161,3279.6,3278.3,1.5069]
[1732283246255,2.65095597,3279.5,3278.3,1.5069]
[1732283246427,0.86213436,3279.5,3278.3,1.5069]
[1732283246951,1.78882161,3279.8,3278.3,1.5069]
[1732283247149,1.78882161,3279.7,3278.3,1.5069]
[1732283247463,3.04932,3279.5,3278.3,1.5069]
[1732283247750,0.304932,3279.4,3277.7,3.3058]
[1732283247953,3.04998,3278.7,3277.0,0.01]
[1732283248162,3.95442388,3278.8,3277.0,0.01]
[1732283248163,3.05024,3278.5,3277.0,0.01]
[1732283248452,3.60015,3278.6,3277.0,0.01]
[1732283248634,3.60015,3278.6,3275.6,1.22846]
[1732283248635,0.01,3278.0,3274.2,1.59036474]
[1732283248845,0.0405194,3278.0,3274.4,0.3058]
[1732283249021,0.0405194,3278.0,3274.3,0.36142649]
[1732283249022,0.0305194,3278.0,3274.6,0.3058]
[1732283249223,0.0305194,3278.0,3274.5,0.36142651]
[1732283249224,0.0305194,3278.0,3274.8,0.3058]
[1732283249473,0.0405194,3278.6,3275.0,0.3058]
[1732283249624,0.0305194,3278.6,3275.1,0.03051398]
[1732283249824,0.0305194,3278.6,3275.2,0.3058]
[1732283250072,0.0305194,3278.6,3275.1,0.30333311]
[1732283250073,0.0305194,3278.6,3275.8,0.3058]
[1732283250222,0.03814028,3278.9,3276.3,0.55]
[1732283250422,0.03814028,3278.9,3276.6,0.3058]
[1732283250658,0.03814028,3278.9,3277.1,0.55]
[1732283250659,0.01,3278.7,3277.1,0.55]